{"text_format":"3","workbook":"xlsx","n_sheets":3,"sheets":["Mēneša budžeta atskaite","Ikmēneša izdevumi","Papildu dati"],"not_rendered":{"charts":1,"defined_names":4,"pivot_tables":2},"read":"whole","date_system":"1900"}

{"sheet":"Mēneša budžeta atskaite","index":0,"n_rows":34,"n_cols":13,"rows_kept":34,"merged":[[7,1,10,1],[7,5,10,5],[7,6,10,6],[12,1,16,1],[12,5,16,5],[12,6,16,6]]}
[null,"Budžeta pārskats",{"$nulls":7},"Budžeta kopsavilkums"]
[null,"Bilance"]
[null,"Plānotā bilance","(Plānotā mīnus izdevumi)",{"$nulls":3},{"$f":"D17-SUM(BudžetaDati[Plānotās izmaksas])","v":{"v":1585,"d":"1,585.00 €"}}]
[null,"Faktiskā bilance ","(Faktiskā mīnus izdevumi)",{"$nulls":3},{"$f":"D11-SUM(BudžetaDati[Faktiskās izmaksas])","v":{"v":1740,"d":"1,740.00 €"}}]
[null,"Starpība","(Faktiskā mīnus plānotā)",{"$nulls":3},{"$f":"G4-G3","v":{"v":155,"d":"155.00 €"}}]
[]
[null,"Ienākumi",{"$nulls":3},"Izdevumi",{"$nulls":3},"Ar peles labo pogu noklikšķiniet uz tālāk esošās rakurstabulas un tad noklikšķiniet uz Atsvaidzināt, lai atjauninātu"]
[null,"FAKTISKI","Ienākumi 1",{"v":5800,"d":"5,800.00 €"},null,"FAKTISKI",{"$f":"SUM(BudžetaDati[Faktiskās izmaksas])","v":{"v":7860,"d":"7,860.00 €"}}]
[null,null,"Ienākumi 2",{"v":2300,"d":"2,300.00 €"},{"$nulls":5},"Kategorija","Plānotās izmaksas","Faktiskās izmaksas","Starpība"]
[null,null,"Papildu ienākumi",{"v":1500,"d":"1,500.00 €"},{"$nulls":5},"Aizdevumi",{"v":200,"d":"200.00 €"},{"v":200,"d":"200.00 €"},{"v":0,"d":"0.00 €"}]
[null,null,"Kopējie ienākumi",{"$f":"SUM(D8:D10)","v":{"v":9600,"d":"9,600.00 €"}}]
[{"$nulls":9},"Apdrošināšana",{"v":900,"d":"900.00 €"},{"v":900,"d":"900.00 €"},{"v":0,"d":"0.00 €"}]
[null,"PLĀNOTS",{"$nulls":3},"PLĀNOTS",{"$f":"SUM(BudžetaDati[Plānotās izmaksas])","v":{"v":7915,"d":"7,915.00 €"}}]
[null,null,"Ienākumi 1",{"v":6000,"d":"6,000.00 €"},{"$nulls":5},"Bērni",{"v":140,"d":"140.00 €"},{"v":140,"d":"140.00 €"},{"v":0,"d":"0.00 €"}]
[null,null,"Ienākumi 2",{"v":1000,"d":"1,000.00 €"}]
[null,null,"Papildu ienākumi",{"v":2500,"d":"2,500.00 €"},{"$nulls":5},"Dāvanas un labdarība",{"v":100,"d":"100.00 €"},{"v":125,"d":"125.00 €"},{"v":-25,"d":"-25.00 €"}]
[null,null,"Kopējie ienākumi",{"$f":"SUM(D14:D16)","v":{"v":9500,"d":"9,500.00 €"}}]
[{"$nulls":9},"Ietaupījumi vai ieguldījumi",{"v":200,"d":"200.00 €"},{"v":200,"d":"200.00 €"},{"v":0,"d":"0.00 €"}]
[]
[{"$nulls":9},"Izklaide",{"v":400,"d":"400.00 €"},{"v":358,"d":"358.00 €"},{"v":42,"d":"42.00 €"}]
[]
[{"$nulls":9},"Mājdzīvnieki",{"v":170,"d":"170.00 €"},{"v":100,"d":"100.00 €"},{"v":70,"d":"70.00 €"}]
[]
[{"$nulls":9},"Mājoklis",{"v":2830,"d":"2,830.00 €"},{"v":2702,"d":"2,702.00 €"},{"v":128,"d":"128.00 €"}]
[]
[{"$nulls":9},"Nodokļi",{"v":300,"d":"300.00 €"},{"v":300,"d":"300.00 €"},{"v":0,"d":"0.00 €"}]
[]
[{"$nulls":9},"Pārtika",{"v":1100,"d":"1,100.00 €"},{"v":1320,"d":"1,320.00 €"},{"v":-220,"d":"-220.00 €"}]
[]
[{"$nulls":9},"Personiskā aprūpe",{"v":150,"d":"150.00 €"},{"v":140,"d":"140.00 €"},{"v":10,"d":"10.00 €"}]
[]
[{"$nulls":9},"Transports",{"v":1425,"d":"1,425.00 €"},{"v":1375,"d":"1,375.00 €"},{"v":50,"d":"50.00 €"}]
[]
[{"$nulls":9},"Gala summa",{"v":7915,"d":"7,915.00 €"},{"v":7860,"d":"7,860.00 €"},{"v":55,"d":"55.00 €"}]

{"sheet":"Ikmēneša izdevumi","index":1,"n_rows":62,"n_cols":7,"rows_kept":62}
[null,"Ikmēneša izdevumi"]
[null,"Apraksts","Kategorija","Plānotās izmaksas","Faktiskās izmaksas","Starpība","Pārskats par faktiskajām izmaksām"]
[null,"Ārpusskolas aktivitātes","Bērni",{"v":40,"d":"40.00 €"},{"v":40,"d":"40.00 €"},{"$f":"BudžetaDati[[#This Row],[Plānotās izmaksas]]-BudžetaDati[[#This Row],[Faktiskās izmaksas]]","v":{"v":0,"d":"0.00 €"}},{"$f":"BudžetaDati[[#This Row],[Faktiskās izmaksas]]","v":{"v":40,"d":"Ls 40"}}]
[null,"Medicīna","Bērni",null,null,{"$f":"BudžetaDati[[#This Row],[Plānotās izmaksas]]-BudžetaDati[[#This Row],[Faktiskās izmaksas]]","v":{"v":0,"d":"0.00 €"}},{"$f":"BudžetaDati[[#This Row],[Faktiskās izmaksas]]","v":{"v":0,"d":"Ls 0"}}]
[null,"Mācību materiāli","Bērni",null,null,{"$f":"BudžetaDati[[#This Row],[Plānotās izmaksas]]-BudžetaDati[[#This Row],[Faktiskās izmaksas]]","v":{"v":0,"d":"0.00 €"}},{"$f":"BudžetaDati[[#This Row],[Faktiskās izmaksas]]","v":{"v":0,"d":"Ls 0"}}]
[null,"Skolas mācību maksa","Bērni",{"v":100,"d":"100.00 €"},{"v":100,"d":"100.00 €"},{"$f":"BudžetaDati[[#This Row],[Plānotās izmaksas]]-BudžetaDati[[#This Row],[Faktiskās izmaksas]]","v":{"v":0,"d":"0.00 €"}},{"$f":"BudžetaDati[[#This Row],[Faktiskās izmaksas]]","v":{"v":100,"d":"Ls 100"}}]
[null,"Koncerti","Izklaide",{"v":50,"d":"50.00 €"},{"v":40,"d":"40.00 €"},{"$f":"BudžetaDati[[#This Row],[Plānotās izmaksas]]-BudžetaDati[[#This Row],[Faktiskās izmaksas]]","v":{"v":10,"d":"10.00 €"}},{"$f":"BudžetaDati[[#This Row],[Faktiskās izmaksas]]","v":{"v":40,"d":"Ls 40"}}]
[null,"Teātris","Izklaide",{"v":200,"d":"200.00 €"},{"v":150,"d":"150.00 €"},{"$f":"BudžetaDati[[#This Row],[Plānotās izmaksas]]-BudžetaDati[[#This Row],[Faktiskās izmaksas]]","v":{"v":50,"d":"50.00 €"}},{"$f":"BudžetaDati[[#This Row],[Faktiskās izmaksas]]","v":{"v":150,"d":"Ls 150"}}]
[null,"Filmas","Izklaide",{"v":50,"d":"50.00 €"},{"v":28,"d":"28.00 €"},{"$f":"BudžetaDati[[#This Row],[Plānotās izmaksas]]-BudžetaDati[[#This Row],[Faktiskās izmaksas]]","v":{"v":22,"d":"22.00 €"}},{"$f":"BudžetaDati[[#This Row],[Faktiskās izmaksas]]","v":{"v":28,"d":"Ls 28"}}]
[null,"Mūzika (CD, lejupielādes u.c.)","Izklaide",{"v":50,"d":"50.00 €"},{"v":30,"d":"30.00 €"},{"$f":"BudžetaDati[[#This Row],[Plānotās izmaksas]]-BudžetaDati[[#This Row],[Faktiskās izmaksas]]","v":{"v":20,"d":"20.00 €"}},{"$f":"BudžetaDati[[#This Row],[Faktiskās izmaksas]]","v":{"v":30,"d":"Ls 30"}}]
[null,"Sporta pasākumi","Izklaide",{"v":0,"d":"0.00 €"},{"v":40,"d":"40.00 €"},{"$f":"BudžetaDati[[#This Row],[Plānotās izmaksas]]-BudžetaDati[[#This Row],[Faktiskās izmaksas]]","v":{"v":-40,"d":"-40.00 €"}},{"$f":"BudžetaDati[[#This Row],[Faktiskās izmaksas]]","v":{"v":40,"d":"Ls 40"}}]
[null,"Video/DVD (iegāde)","Izklaide",{"v":20,"d":"20.00 €"},{"v":50,"d":"50.00 €"},{"$f":"BudžetaDati[[#This Row],[Plānotās izmaksas]]-BudžetaDati[[#This Row],[Faktiskās izmaksas]]","v":{"v":-30,"d":"-30.00 €"}},{"$f":"BudžetaDati[[#This Row],[Faktiskās izmaksas]]","v":{"v":50,"d":"Ls 50"}}]
[null,"Video/DVD (noma)","Izklaide",{"v":30,"d":"30.00 €"},{"v":20,"d":"20.00 €"},{"$f":"BudžetaDati[[#This Row],[Plānotās izmaksas]]-BudžetaDati[[#This Row],[Faktiskās izmaksas]]","v":{"v":10,"d":"10.00 €"}},{"$f":"BudžetaDati[[#This Row],[Faktiskās izmaksas]]","v":{"v":20,"d":"Ls 20"}}]
[null,"Maltītes ārpus mājas","Pārtika",{"v":1000,"d":"1,000.00 €"},{"v":1200,"d":"1,200.00 €"},{"$f":"BudžetaDati[[#This Row],[Plānotās izmaksas]]-BudžetaDati[[#This Row],[Faktiskās izmaksas]]","v":{"v":-200,"d":"-200.00 €"}},{"$f":"BudžetaDati[[#This Row],[Faktiskās izmaksas]]","v":{"v":1200,"d":"Ls 1,200"}}]
[null,"Pārtika","Pārtika",{"v":100,"d":"100.00 €"},{"v":120,"d":"120.00 €"},{"$f":"BudžetaDati[[#This Row],[Plānotās izmaksas]]-BudžetaDati[[#This Row],[Faktiskās izmaksas]]","v":{"v":-20,"d":"-20.00 €"}},{"$f":"BudžetaDati[[#This Row],[Faktiskās izmaksas]]","v":{"v":120,"d":"Ls 120"}}]
[null,"Labdarība 1","Dāvanas un labdarība",{"v":75,"d":"75.00 €"},{"v":100,"d":"100.00 €"},{"$f":"BudžetaDati[[#This Row],[Plānotās izmaksas]]-BudžetaDati[[#This Row],[Faktiskās izmaksas]]","v":{"v":-25,"d":"-25.00 €"}},{"$f":"BudžetaDati[[#This Row],[Faktiskās izmaksas]]","v":{"v":100,"d":"Ls 100"}}]
[null,"Labdarība 2","Dāvanas un labdarība",{"v":25,"d":"25.00 €"},{"v":25,"d":"25.00 €"},{"$f":"BudžetaDati[[#This Row],[Plānotās izmaksas]]-BudžetaDati[[#This Row],[Faktiskās izmaksas]]","v":{"v":0,"d":"0.00 €"}},{"$f":"BudžetaDati[[#This Row],[Faktiskās izmaksas]]","v":{"v":25,"d":"Ls 25"}}]
[null,"Dāvana 1","Dāvanas un labdarība",null,null,{"$f":"BudžetaDati[[#This Row],[Plānotās izmaksas]]-BudžetaDati[[#This Row],[Faktiskās izmaksas]]","v":{"v":0,"d":"0.00 €"}},{"$f":"BudžetaDati[[#This Row],[Faktiskās izmaksas]]","v":{"v":0,"d":"Ls 0"}}]
[null,"Dāvana 2","Dāvanas un labdarība",null,null,{"$f":"BudžetaDati[[#This Row],[Plānotās izmaksas]]-BudžetaDati[[#This Row],[Faktiskās izmaksas]]","v":{"v":0,"d":"0.00 €"}},{"$f":"BudžetaDati[[#This Row],[Faktiskās izmaksas]]","v":{"v":0,"d":"Ls 0"}}]
[null,"Kabeļtelevīzija/satelīts","Mājoklis",{"v":100,"d":"100.00 €"},{"v":100,"d":"100.00 €"},{"$f":"BudžetaDati[[#This Row],[Plānotās izmaksas]]-BudžetaDati[[#This Row],[Faktiskās izmaksas]]","v":{"v":0,"d":"0.00 €"}},{"$f":"BudžetaDati[[#This Row],[Faktiskās izmaksas]]","v":{"v":100,"d":"Ls 100"}}]
[null,"Elektroenerģija","Mājoklis",{"v":45,"d":"45.00 €"},{"v":50,"d":"50.00 €"},{"$f":"BudžetaDati[[#This Row],[Plānotās izmaksas]]-BudžetaDati[[#This Row],[Faktiskās izmaksas]]","v":{"v":-5,"d":"-5.00 €"}},{"$f":"BudžetaDati[[#This Row],[Faktiskās izmaksas]]","v":{"v":50,"d":"Ls 50"}}]
[null,"Degviela","Mājoklis",{"v":300,"d":"300.00 €"},{"v":400,"d":"400.00 €"},{"$f":"BudžetaDati[[#This Row],[Plānotās izmaksas]]-BudžetaDati[[#This Row],[Faktiskās izmaksas]]","v":{"v":-100,"d":"-100.00 €"}},{"$f":"BudžetaDati[[#This Row],[Faktiskās izmaksas]]","v":{"v":400,"d":"Ls 400"}}]
[null,"Mājas tīrīšanas pakalpojumi","Mājoklis",{"v":200,"d":"200.00 €"},null,{"$f":"BudžetaDati[[#This Row],[Plānotās izmaksas]]-BudžetaDati[[#This Row],[Faktiskās izmaksas]]","v":{"v":200,"d":"200.00 €"}},{"$f":"BudžetaDati[[#This Row],[Faktiskās izmaksas]]","v":{"v":0,"d":"Ls 0"}}]
[null,"Apkope","Mājoklis",{"v":200,"d":"200.00 €"},{"v":150,"d":"150.00 €"},{"$f":"BudžetaDati[[#This Row],[Plānotās izmaksas]]-BudžetaDati[[#This Row],[Faktiskās izmaksas]]","v":{"v":50,"d":"50.00 €"}},{"$f":"BudžetaDati[[#This Row],[Faktiskās izmaksas]]","v":{"v":150,"d":"Ls 150"}}]
[null,"Hipotekārais kredīts vai īre","Mājoklis",{"v":1700,"d":"1,700.00 €"},{"v":1700,"d":"1,700.00 €"},{"$f":"BudžetaDati[[#This Row],[Plānotās izmaksas]]-BudžetaDati[[#This Row],[Faktiskās izmaksas]]","v":{"v":0,"d":"0.00 €"}},{"$f":"BudžetaDati[[#This Row],[Faktiskās izmaksas]]","v":{"v":1700,"d":"Ls 1,700"}}]
[null,"Dabasgāze/nafta","Mājoklis",null,null,{"$f":"BudžetaDati[[#This Row],[Plānotās izmaksas]]-BudžetaDati[[#This Row],[Faktiskās izmaksas]]","v":{"v":0,"d":"0.00 €"}},{"$f":"BudžetaDati[[#This Row],[Faktiskās izmaksas]]","v":{"v":0,"d":"Ls 0"}}]
[null,"Tiešsaistes/interneta pakalpojumi","Mājoklis",{"v":100,"d":"100.00 €"},{"v":100,"d":"100.00 €"},{"$f":"BudžetaDati[[#This Row],[Plānotās izmaksas]]-BudžetaDati[[#This Row],[Faktiskās izmaksas]]","v":{"v":0,"d":"0.00 €"}},{"$f":"BudžetaDati[[#This Row],[Faktiskās izmaksas]]","v":{"v":100,"d":"Ls 100"}}]
[null,"Tālrunis (mobilais)","Mājoklis",{"v":60,"d":"60.00 €"},{"v":60,"d":"60.00 €"},{"$f":"BudžetaDati[[#This Row],[Plānotās izmaksas]]-BudžetaDati[[#This Row],[Faktiskās izmaksas]]","v":{"v":0,"d":"0.00 €"}},{"$f":"BudžetaDati[[#This Row],[Faktiskās izmaksas]]","v":{"v":60,"d":"Ls 60"}}]
[null,"Tālrunis (mājās)","Mājoklis",{"v":35,"d":"35.00 €"},{"v":39,"d":"39.00 €"},{"$f":"BudžetaDati[[#This Row],[Plānotās izmaksas]]-BudžetaDati[[#This Row],[Faktiskās izmaksas]]","v":{"v":-4,"d":"-4.00 €"}},{"$f":"BudžetaDati[[#This Row],[Faktiskās izmaksas]]","v":{"v":39,"d":"Ls 39"}}]
[null,"Krājumi","Mājoklis",{"v":40,"d":"40.00 €"},{"v":55,"d":"55.00 €"},{"$f":"BudžetaDati[[#This Row],[Plānotās izmaksas]]-BudžetaDati[[#This Row],[Faktiskās izmaksas]]","v":{"v":-15,"d":"-15.00 €"}},{"$f":"BudžetaDati[[#This Row],[Faktiskās izmaksas]]","v":{"v":55,"d":"Ls 55"}}]
[null,"Atkritumu izvešana un pārstrāde","Mājoklis",{"v":25,"d":"25.00 €"},{"v":22,"d":"22.00 €"},{"$f":"BudžetaDati[[#This Row],[Plānotās izmaksas]]-BudžetaDati[[#This Row],[Faktiskās izmaksas]]","v":{"v":3,"d":"3.00 €"}},{"$f":"BudžetaDati[[#This Row],[Faktiskās izmaksas]]","v":{"v":22,"d":"Ls 22"}}]
[null,"Ūdensapgāde un kanalizācija","Mājoklis",{"v":25,"d":"25.00 €"},{"v":26,"d":"26.00 €"},{"$f":"BudžetaDati[[#This Row],[Plānotās izmaksas]]-BudžetaDati[[#This Row],[Faktiskās izmaksas]]","v":{"v":-1,"d":"-1.00 €"}},{"$f":"BudžetaDati[[#This Row],[Faktiskās izmaksas]]","v":{"v":26,"d":"Ls 26"}}]
[null,"Veselības","Apdrošināšana",{"v":400,"d":"400.00 €"},{"v":400,"d":"400.00 €"},{"$f":"BudžetaDati[[#This Row],[Plānotās izmaksas]]-BudžetaDati[[#This Row],[Faktiskās izmaksas]]","v":{"v":0,"d":"0.00 €"}},{"$f":"BudžetaDati[[#This Row],[Faktiskās izmaksas]]","v":{"v":400,"d":"Ls 400"}}]
[null,"Sākums","Apdrošināšana",{"v":400,"d":"400.00 €"},{"v":400,"d":"400.00 €"},{"$f":"BudžetaDati[[#This Row],[Plānotās izmaksas]]-BudžetaDati[[#This Row],[Faktiskās izmaksas]]","v":{"v":0,"d":"0.00 €"}},{"$f":"BudžetaDati[[#This Row],[Faktiskās izmaksas]]","v":{"v":400,"d":"Ls 400"}}]
[null,"Dzīvības","Apdrošināšana",{"v":100,"d":"100.00 €"},{"v":100,"d":"100.00 €"},{"$f":"BudžetaDati[[#This Row],[Plānotās izmaksas]]-BudžetaDati[[#This Row],[Faktiskās izmaksas]]","v":{"v":0,"d":"0.00 €"}},{"$f":"BudžetaDati[[#This Row],[Faktiskās izmaksas]]","v":{"v":100,"d":"Ls 100"}}]
[null,"Kredītkarte 1","Aizdevumi",{"v":200,"d":"200.00 €"},{"v":200,"d":"200.00 €"},{"$f":"BudžetaDati[[#This Row],[Plānotās izmaksas]]-BudžetaDati[[#This Row],[Faktiskās izmaksas]]","v":{"v":0,"d":"0.00 €"}},{"$f":"BudžetaDati[[#This Row],[Faktiskās izmaksas]]","v":{"v":200,"d":"Ls 200"}}]
[null,"Kredītkarte 2","Aizdevumi",null,null,{"$f":"BudžetaDati[[#This Row],[Plānotās izmaksas]]-BudžetaDati[[#This Row],[Faktiskās izmaksas]]","v":{"v":0,"d":"0.00 €"}},{"$f":"BudžetaDati[[#This Row],[Faktiskās izmaksas]]","v":{"v":0,"d":"Ls 0"}}]
[null,"Kredītkarte 3","Aizdevumi",null,null,{"$f":"BudžetaDati[[#This Row],[Plānotās izmaksas]]-BudžetaDati[[#This Row],[Faktiskās izmaksas]]","v":{"v":0,"d":"0.00 €"}},{"$f":"BudžetaDati[[#This Row],[Faktiskās izmaksas]]","v":{"v":0,"d":"Ls 0"}}]
[null,"Personisks","Aizdevumi",null,null,{"$f":"BudžetaDati[[#This Row],[Plānotās izmaksas]]-BudžetaDati[[#This Row],[Faktiskās izmaksas]]","v":{"v":0,"d":"0.00 €"}},{"$f":"BudžetaDati[[#This Row],[Faktiskās izmaksas]]","v":{"v":0,"d":"Ls 0"}}]
[null,"Studiju kredīts","Aizdevumi",null,null,{"$f":"BudžetaDati[[#This Row],[Plānotās izmaksas]]-BudžetaDati[[#This Row],[Faktiskās izmaksas]]","v":{"v":0,"d":"0.00 €"}},{"$f":"BudžetaDati[[#This Row],[Faktiskās izmaksas]]","v":{"v":0,"d":"Ls 0"}}]
[null,"Apģērbs","Personiskā aprūpe",{"v":150,"d":"150.00 €"},{"v":140,"d":"140.00 €"},{"$f":"BudžetaDati[[#This Row],[Plānotās izmaksas]]-BudžetaDati[[#This Row],[Faktiskās izmaksas]]","v":{"v":10,"d":"10.00 €"}},{"$f":"BudžetaDati[[#This Row],[Faktiskās izmaksas]]","v":{"v":140,"d":"Ls 140"}}]
[null,"Ķīmiskā tīrītava","Personiskā aprūpe",null,null,{"$f":"BudžetaDati[[#This Row],[Plānotās izmaksas]]-BudžetaDati[[#This Row],[Faktiskās izmaksas]]","v":{"v":0,"d":"0.00 €"}},{"$f":"BudžetaDati[[#This Row],[Faktiskās izmaksas]]","v":{"v":0,"d":"Ls 0"}}]
[null,"Frizieris/manikīra speciālists","Personiskā aprūpe",null,null,{"$f":"BudžetaDati[[#This Row],[Plānotās izmaksas]]-BudžetaDati[[#This Row],[Faktiskās izmaksas]]","v":{"v":0,"d":"0.00 €"}},{"$f":"BudžetaDati[[#This Row],[Faktiskās izmaksas]]","v":{"v":0,"d":"Ls 0"}}]
[null,"Veselības klubs","Personiskā aprūpe",null,null,{"$f":"BudžetaDati[[#This Row],[Plānotās izmaksas]]-BudžetaDati[[#This Row],[Faktiskās izmaksas]]","v":{"v":0,"d":"0.00 €"}},{"$f":"BudžetaDati[[#This Row],[Faktiskās izmaksas]]","v":{"v":0,"d":"Ls 0"}}]
[null,"Medicīna","Personiskā aprūpe",null,null,{"$f":"BudžetaDati[[#This Row],[Plānotās izmaksas]]-BudžetaDati[[#This Row],[Faktiskās izmaksas]]","v":{"v":0,"d":"0.00 €"}},{"$f":"BudžetaDati[[#This Row],[Faktiskās izmaksas]]","v":{"v":0,"d":"Ls 0"}}]
[null,"Pārtika","Mājdzīvnieki",{"v":150,"d":"150.00 €"},{"v":75,"d":"75.00 €"},{"$f":"BudžetaDati[[#This Row],[Plānotās izmaksas]]-BudžetaDati[[#This Row],[Faktiskās izmaksas]]","v":{"v":75,"d":"75.00 €"}},{"$f":"BudžetaDati[[#This Row],[Faktiskās izmaksas]]","v":{"v":75,"d":"Ls 75"}}]
[null,"Kopšana","Mājdzīvnieki",{"v":20,"d":"20.00 €"},{"v":25,"d":"25.00 €"},{"$f":"BudžetaDati[[#This Row],[Plānotās izmaksas]]-BudžetaDati[[#This Row],[Faktiskās izmaksas]]","v":{"v":-5,"d":"-5.00 €"}},{"$f":"BudžetaDati[[#This Row],[Faktiskās izmaksas]]","v":{"v":25,"d":"Ls 25"}}]
[null,"Medicīna","Mājdzīvnieki",null,null,{"$f":"BudžetaDati[[#This Row],[Plānotās izmaksas]]-BudžetaDati[[#This Row],[Faktiskās izmaksas]]","v":{"v":0,"d":"0.00 €"}},{"$f":"BudžetaDati[[#This Row],[Faktiskās izmaksas]]","v":{"v":0,"d":"Ls 0"}}]
[null,"Rotaļlietas","Mājdzīvnieki",null,null,{"$f":"BudžetaDati[[#This Row],[Plānotās izmaksas]]-BudžetaDati[[#This Row],[Faktiskās izmaksas]]","v":{"v":0,"d":"0.00 €"}},{"$f":"BudžetaDati[[#This Row],[Faktiskās izmaksas]]","v":{"v":0,"d":"Ls 0"}}]
[null,"Noguldījumu konts","Ietaupījumi vai ieguldījumi",{"v":200,"d":"200.00 €"},{"v":200,"d":"200.00 €"},{"$f":"BudžetaDati[[#This Row],[Plānotās izmaksas]]-BudžetaDati[[#This Row],[Faktiskās izmaksas]]","v":{"v":0,"d":"0.00 €"}},{"$f":"BudžetaDati[[#This Row],[Faktiskās izmaksas]]","v":{"v":200,"d":"Ls 200"}}]
[null,"Pensijas konts","Ietaupījumi vai ieguldījumi",null,null,{"$f":"BudžetaDati[[#This Row],[Plānotās izmaksas]]-BudžetaDati[[#This Row],[Faktiskās izmaksas]]","v":{"v":0,"d":"0.00 €"}},{"$f":"BudžetaDati[[#This Row],[Faktiskās izmaksas]]","v":{"v":0,"d":"Ls 0"}}]
[null,"Federālie","Nodokļi",{"v":300,"d":"300.00 €"},{"v":300,"d":"300.00 €"},{"$f":"BudžetaDati[[#This Row],[Plānotās izmaksas]]-BudžetaDati[[#This Row],[Faktiskās izmaksas]]","v":{"v":0,"d":"0.00 €"}},{"$f":"BudžetaDati[[#This Row],[Faktiskās izmaksas]]","v":{"v":300,"d":"Ls 300"}}]
[null,"Vietējie","Nodokļi",null,null,{"$f":"BudžetaDati[[#This Row],[Plānotās izmaksas]]-BudžetaDati[[#This Row],[Faktiskās izmaksas]]","v":{"v":0,"d":"0.00 €"}},{"$f":"BudžetaDati[[#This Row],[Faktiskās izmaksas]]","v":{"v":0,"d":"Ls 0"}}]
[null,"Valsts/reģions","Nodokļi",null,null,{"$f":"BudžetaDati[[#This Row],[Plānotās izmaksas]]-BudžetaDati[[#This Row],[Faktiskās izmaksas]]","v":{"v":0,"d":"0.00 €"}},{"$f":"BudžetaDati[[#This Row],[Faktiskās izmaksas]]","v":{"v":0,"d":"Ls 0"}}]
[null,"Maksa par braukšanu ar autobusu/taksometru","Transports",{"v":100,"d":"100.00 €"},{"v":150,"d":"150.00 €"},{"$f":"BudžetaDati[[#This Row],[Plānotās izmaksas]]-BudžetaDati[[#This Row],[Faktiskās izmaksas]]","v":{"v":-50,"d":"-50.00 €"}},{"$f":"BudžetaDati[[#This Row],[Faktiskās izmaksas]]","v":{"v":150,"d":"Ls 150"}}]
[null,"Degviela","Transports",{"v":450,"d":"450.00 €"},{"v":400,"d":"400.00 €"},{"$f":"BudžetaDati[[#This Row],[Plānotās izmaksas]]-BudžetaDati[[#This Row],[Faktiskās izmaksas]]","v":{"v":50,"d":"50.00 €"}},{"$f":"BudžetaDati[[#This Row],[Faktiskās izmaksas]]","v":{"v":400,"d":"Ls 400"}}]
[null,"Apdrošināšana","Transports",{"v":300,"d":"300.00 €"},{"v":300,"d":"300.00 €"},{"$f":"BudžetaDati[[#This Row],[Plānotās izmaksas]]-BudžetaDati[[#This Row],[Faktiskās izmaksas]]","v":{"v":0,"d":"0.00 €"}},{"$f":"BudžetaDati[[#This Row],[Faktiskās izmaksas]]","v":{"v":300,"d":"Ls 300"}}]
[null,"Licencēšana ","Transports",{"v":25,"d":"25.00 €"},{"v":25,"d":"25.00 €"},{"$f":"BudžetaDati[[#This Row],[Plānotās izmaksas]]-BudžetaDati[[#This Row],[Faktiskās izmaksas]]","v":{"v":0,"d":"0.00 €"}},{"$f":"BudžetaDati[[#This Row],[Faktiskās izmaksas]]","v":{"v":25,"d":"Ls 25"}}]
[null,"Apkope","Transports",{"v":100,"d":"100.00 €"},{"v":50,"d":"50.00 €"},{"$f":"BudžetaDati[[#This Row],[Plānotās izmaksas]]-BudžetaDati[[#This Row],[Faktiskās izmaksas]]","v":{"v":50,"d":"50.00 €"}},{"$f":"BudžetaDati[[#This Row],[Faktiskās izmaksas]]","v":{"v":50,"d":"Ls 50"}}]
[null,"Maksa par autostāvvietu","Transports",null,null,{"$f":"BudžetaDati[[#This Row],[Plānotās izmaksas]]-BudžetaDati[[#This Row],[Faktiskās izmaksas]]","v":{"v":0,"d":"0.00 €"}},{"$f":"BudžetaDati[[#This Row],[Faktiskās izmaksas]]","v":{"v":0,"d":"Ls 0"}}]
[null,"Maksājumi par automašīnu","Transports",{"v":450,"d":"450.00 €"},{"v":450,"d":"450.00 €"},{"$f":"BudžetaDati[[#This Row],[Plānotās izmaksas]]-BudžetaDati[[#This Row],[Faktiskās izmaksas]]","v":{"v":0,"d":"0.00 €"}},{"$f":"BudžetaDati[[#This Row],[Faktiskās izmaksas]]","v":{"v":450,"d":"Ls 450"}}]
[null,"Kopā",null,{"$f":"SUBTOTAL(109,BudžetaDati[Plānotās izmaksas])","v":{"v":7915,"d":"7,915.00 €"}},{"$f":"SUBTOTAL(109,BudžetaDati[Faktiskās izmaksas])","v":{"v":7860,"d":"7,860.00 €"}},{"$f":"SUBTOTAL(109,BudžetaDati[Starpība])","v":{"v":55,"d":"55.00 €"}}]

{"sheet":"Papildu dati","index":2,"n_rows":15,"n_cols":5,"rows_kept":15}
[null,"Rakurstabula budžeta pārskata diagrammai",null,null,"Budžeta datu kategorijas meklēšanas saraksts"]
[null,"Kategorija","Izmaksas",null,"Budžeta kategorijas meklēšana"]
[null,"Aizdevumi",200,null,"Bērni"]
[null,"Apdrošināšana",900,null,"Izklaide"]
[null,"Bērni",140,null,"Pārtika"]
[null,"Dāvanas un labdarība",125,null,"Dāvanas un labdarība"]
[null,"Ietaupījumi vai ieguldījumi",200,null,"Mājoklis"]
[null,"Izklaide",358,null,"Apdrošināšana"]
[null,"Mājdzīvnieki",100,null,"Aizdevumi"]
[null,"Mājoklis",2702,null,"Personiskā aprūpe"]
[null,"Nodokļi",300,null,"Mājdzīvnieki"]
[null,"Pārtika",1320,null,"Ietaupījumi vai ieguldījumi"]
[null,"Personiskā aprūpe",140,null,"Nodokļi"]
[null,"Transports",1375,null,"Transports"]
[null,"Gala summa",7860]